[Event "European Womens-ch 2025"]
[Site "Rhodes"]
[Date "2025.04.01"]
[Round "2.1"]
[White "Mkrtchyan, Mariam"]
[Black "Batsiashvili, Nino"]
[Result "1/2-1/2"]
[Annotator "TA"]
[ECO "B42"]
[WhiteElo "2282"]
[BlackElo "2473"]
[PlyCount "49"]
[EventDate "2025.03.29"]
[EventType "swiss"]
[EventCountry "GRE"]
[SourceTitle "playchess.com"]
[Source "ChessBase"]
[SourceQuality "1"]
[TimeControl "40/5400+30:1800+30"]

{[%evp 15,49,23,29,27,45,12,16,15,10,7,2,10,25,31,27,28,23,26,20,22,35,29,34,41,32,32,30,23,28,11,23,16,19,18,15,20]} 1. e4 {[%emt 0:00:03]} c5 {[%emt 0:02:48]} 2. Nf3 {[%emt 0:00:10]} e6 {[%emt 0:01:02]} 3. d4 {[%emt 0:01:54]} cxd4 {[%emt 0:00:06]} 4. Nxd4 {[%emt 0:00:05]} a6 {[%emt 0:00:04]} 5. Bd3 {[%emt 0:03:27]} Nc6 {[%emt 0:04:17]} 6. Nxc6 {[%emt 0:02:48]} dxc6 {[%emt 0:00:10]} 7. O-O {[%emt 0:00:51] 7.Bf4 is the modern continuation.} e5 {[%emt 0:01:50]} 8. a4 {[%emt 0:01:43]} Nf6 {[%emt 0:01:58]} 9. Nd2 {[%emt 0:04:21] B42: Sicilian: Kan Variation: 5 Bd3.} Bg4 {[%emt 0:07:01]} 10. Be2 $146 {[%emt 0:02:38]} (10. Qe1 Bc5 11. Nc4 Qe7 12. h3 Bh5 13. Rb1 O-O 14. b4 Bd4 15. b5 axb5 16. axb5 Bg6 {½-½ Hedman,E (2396)-Neiksans,A (2458) Panevezys Cesnauskas Memorial-A 2009 (2)}) 10... Be6 {[%emt 0:01:19]} 11. Bc4 {[%emt 0:04:45]} Bxc4 {[%emt 0:36:00]} 12. Nxc4 {[%emt 0:00:09]} Qxd1 {[%emt 0:00:29]} 13. Rxd1 {[%emt 0:00:05]} Bc5 {[%emt 0:01:02]} 14. Kf1 {[%emt 0:08:52]} Nxe4 {[%emt 0:05:47]} 15. Re1 {[%emt 0:12:25]} f5 {[%emt 0:00:02]} (15... Nxf2 $2 {perishes.} 16. Rxe5+ (16. Nxe5 O-O-O $15) 16... Be7 17. Kxf2 $18) 16. f3 {[%emt 0:06:03]} O-O $1 {[%emt 0:00:12][%cal Oa8e8]} 17. Be3 {[%emt 0:00:23]} Bxe3 {[%emt 0:07:47]} 18. Rxe3 {[%emt 0:02:37]} Nf6 {[%emt 0:00:39]} 19. Rxe5 {[%emt 0:00:21]} Nd5 {[%emt 0:00:21]} 20. a5 {[%emt 0:02:23]} Rad8 {[%emt 0:01:44]} 21. Rd1 {[%emt 0:09:15]} g6 {[%emt 0:02:33]} 22. c3 {[%emt 0:03:25]} Rd7 {[%emt 0:05:05]} 23. g3 {[%emt 0:11:28]} Rfd8 {[%emt 0:05:09]} 24. Kf2 {[%emt 0:04:45]} Kf8 {[%emt 0:01:41]} 25. Re2 {[%emt 0:06:55] Weighted Error Value: White=0.05 (flawless) /Black=0.03 (flawless)   Inaccurate:     	White=1     	---        OK:         	White=6     	Black=10     Strong:       	---       	Black=1} 1/2-1/2

[Event "European Womens-ch 2025"]
[Site "Rhodes"]
[Date "2025.04.01"]
[Round "2.2"]
[White "Avramidou, Anastasia"]
[Black "Arabidze, Meri"]
[Result "1/2-1/2"]
[Annotator "TA"]
[ECO "C45"]
[WhiteElo "2275"]
[BlackElo "2447"]
[PlyCount "51"]
[EventDate "2025.03.29"]
[EventType "swiss"]
[EventCountry "GRE"]
[SourceTitle "playchess.com"]
[Source "ChessBase"]
[SourceQuality "1"]
[TimeControl "40/5400+30:1800+30"]

{[%evp 9,51,-13,-10,-16,19,16,29,12,27,19,21,0,0,-22,60,19,26,27,38,43,33,39,31,32,41,37,34,33,39,38,46,42,43,42,40,0,40,40,41,11,10,9,27,0]} 1. e4 {[%emt 0:00:04]} e5 {[%emt 0:00:12]} 2. Nf3 {[%emt 0:00:08]} Nc6 {[%emt 0:00:05]} 3. d4 {[%emt 0:00:11]} exd4 {[%emt 0:00:09]} 4. Nxd4 {[%emt 0:00:12]} Bc5 {[%emt 0:00:07]} 5. Nb3 {[%emt 0:00:11]} Bb6 {[%emt 0:00:26]} 6. Qe2 {[%emt 0:00:12] C45: Scotch Game.} d6 {[%emt 0:02:50]} 7. Be3 {[%emt 0:01:23]} Nf6 {[%emt 0:04:30]} (7... Qh4 {feels hotter.} 8. Nc3 Bg4 9. Qd2 Nf6) 8. Bxb6 {[%emt 0:05:15]} axb6 {[%emt 0:00:08]} 9. Nc3 {[%emt 0:01:21]} Be6 {[%emt 0:04:34]} 10. g3 $146 {[%emt 0:11:35]} (10. Rd1 Qe7 11. g3 O-O 12. Bg2 Rfe8 13. O-O Bg4 14. f3 Bh5 15. g4 Bg6 16. g5 {½-½ Stepankova,L (1592)-Koutecka,M (1482) CZE-ch U12 Girls 2024 (7)}) 10... O-O {[%emt 0:20:30]} 11. Bg2 {[%emt 0:00:38]} Qd7 {[%emt 0:10:28]} (11... Re8 $11) 12. O-O {[%emt 0:02:26]} Bh3 {[%emt 0:00:22]} 13. Rfe1 {[%emt 0:08:59]} Rfe8 {[%emt 0:02:25]} 14. Rad1 {[%emt 0:05:27]} Re7 {[%emt 0:01:44]} 15. Bxh3 {[%emt 0:10:12] Successful Defense White} Qxh3 {[%emt 0:00:02]} 16. f3 {[%emt 0:00:09]} h5 {[%emt 0:01:51]} 17. Nd4 {[%emt 0:09:43]} Nxd4 {[%emt 0:06:00]} 18. Rxd4 {[%emt 0:00:06]} Ra5 {[%emt 0:02:04]} 19. Red1 {[%emt 0:06:15]} g6 {[%emt 0:05:04]} 20. a3 {[%emt 0:10:21][%cal Ba2a3,Ba3a4][%mdl 32]} Rae5 {[%emt 0:01:29]} 21. Qf2 {[%emt 0:05:12]} Re8 {[%emt 0:03:00]} 22. b3 {[%emt 0:04:22]} Qd7 {[%emt 0:06:09]} 23. a4 {[%emt 0:02:25]} Qc6 {[%emt 0:02:06]} 24. Rc4 {[%emt 0:03:17]} Rc5 {[%emt 0:04:14]} 25. Rxc5 {[%emt 0:00:05]} bxc5 {[%emt 0:00:22]} 26. Qf1 {[%emt 0:01:23] Weighted Error Value: White=0.09 (flawless) /Black=0.14 (very precise)   Mistake:       	---       	Black=1      Inaccurate:     	White=4     	Black=2      OK:         	White=7     	Black=3} 1/2-1/2

[Event "European Womens-ch 2025"]
[Site "Rhodes"]
[Date "2025.04.01"]
[Round "2.3"]
[White "Allahverdiyeva, Ayan"]
[Black "Ushenina, Anna"]
[Result "1/2-1/2"]
[Annotator "RC"]
[ECO "B29"]
[WhiteElo "2266"]
[BlackElo "2428"]
[PlyCount "76"]
[EventDate "2025.03.29"]
[EventType "swiss"]
[EventCountry "GRE"]
[SourceTitle "playchess.com"]
[Source "ChessBase"]
[SourceQuality "1"]
[TimeControl "40/5400+30:1800+30"]

1. e4 {[%emt 0:00:10]} c5 {[%emt 0:00:16]} 2. Nf3 {[%emt 0:00:12]} Nf6 {[%emt 0:00:07]} 3. e5 {[%emt 0:00:08]} Nd5 {[%emt 0:00:05]} 4. Nc3 {[%emt 0:00:05]} e6 {[%emt 0:00:07]} 5. Ne4 {[%emt 0:00:05]} d6 {[%emt 0:00:52]} 6. exd6 {[%emt 0:00:39]} Bxd6 {[%emt 0:00:20]} 7. Bb5+ {[%emt 0:00:30]} Nc6 {[%emt 0:00:33]} 8. Bxc6+ {[%emt 0:00:46]} bxc6 {[%emt 0:00:02]} 9. Nxd6+ {[%emt 0:00:07]} Qxd6 {[%emt 0:00:05]} 10. O-O {[%emt 0:02:18]} O-O {[%emt 0:05:54]} 11. Re1 {[%emt 0:00:04]} f6 {[%emt 0:22:53]} 12. d3 {[%emt 0:06:50]} e5 {[%emt 0:00:24]} 13. Nd2 {[%emt 0:00:14]} Be6 {[%emt 0:09:04]} 14. Ne4 {[%emt 0:07:32]} Qe7 {[%emt 0:00:07]} 15. c4 {[%emt 0:01:57]} Nb6 {[%emt 0:06:30]} 16. Be3 {[%emt 0:02:13]} Nd7 {[%emt 0:01:29]} 17. Qb3 {[%emt 0:30:35]} f5 {[%emt 0:31:24]} 18. Nxc5 {[%emt 0:01:16]} f4 {[%emt 0:01:13]} 19. Nxd7 {[%emt 0:06:03]} Bxd7 {[%emt 0:00:57]} 20. Bd4 {[%emt 0:00:42]} Rf5 {[%emt 0:02:18]} 21. f3 {[%emt 0:06:48]} Rg5 {[%emt 0:01:19]} 22. Kh1 {[%emt 0:05:50]} Re8 {[%emt 0:06:42]} 23. Bg1 {[%emt 0:04:43]} Bf5 {[%emt 0:03:41]} 24. Re2 {[%emt 0:03:46]} Qd7 {[%emt 0:00:14]} 25. Rd1 {[%emt 0:06:50]} h6 {[%emt 0:00:21]} 26. Qa3 {[%emt 0:00:55]} e4 {[%emt 0:02:06]} 27. Qxa7 {[%emt 0:05:05]} exf3 {[%emt 0:00:06]} 28. Qxd7 {[%emt 0:00:15]} Rxe2 {[%emt 0:03:04]} 29. Qd8+ {[%emt 0:01:31]} Kh7 {[%emt 0:00:04]} 30. Bd4 {[%emt 0:02:54]} Rgxg2 {[%emt 0:00:53]} 31. Qh4 {[%emt 0:00:56]} Rg4 {[%emt 0:00:48]} 32. Qd8 {[%emt 0:03:06]} Rgg2 {[%emt 0:00:32]} 33. Bg1 {[%emt 0:00:26]} Rg5 {[%emt 0:01:13]} 34. Qd4 {[%emt 0:01:16]} Bh3 {[%emt 0:00:11]} 35. Bf2 {[%emt 0:00:06]} Bg2+ {[%emt 0:00:14]} 36. Kg1 {[%emt 0:00:03]} Bh3+ {[%emt 0:00:05]} 37. Kh1 {[%emt 0:00:03]} Bg2+ {[%emt 0:00:25]} 38. Kg1 {[%emt 0:00:07]} Bh3+ {[%emt 0:00:03]} 1/2-1/2

[Event "European Womens-ch 2025"]
[Site "Rhodes"]
[Date "2025.04.01"]
[Round "2.4"]
[White "Smietanska, Wiktoria"]
[Black "Khotenashvili, Bella"]
[Result "0-1"]
[Annotator "RC"]
[ECO "B19"]
[WhiteElo "2254"]
[BlackElo "2418"]
[PlyCount "110"]
[EventDate "2025.03.29"]
[EventType "swiss"]
[EventCountry "GRE"]
[SourceTitle "playchess.com"]
[Source "ChessBase"]
[SourceQuality "1"]
[TimeControl "40/5400+30:1800+30"]

1. e4 {[%emt 0:00:04]} c6 {[%emt 0:00:15]} 2. d4 {[%emt 0:00:09]} d5 {[%emt 0:00:06]} 3. Nd2 {[%emt 0:00:13]} dxe4 {[%emt 0:00:18]} 4. Nxe4 {[%emt 0:00:09]} Bf5 {[%emt 0:00:07]} 5. Ng3 {[%emt 0:00:11]} Bg6 {[%emt 0:00:05]} 6. h4 {[%emt 0:00:12]} h6 {[%emt 0:00:09]} 7. Nf3 {[%emt 0:00:06]} Nd7 {[%emt 0:00:04]} 8. h5 {[%emt 0:00:09]} Bh7 {[%emt 0:00:06]} 9. Bd3 {[%emt 0:00:09]} Bxd3 {[%emt 0:00:14]} 10. Qxd3 {[%emt 0:00:06]} Ngf6 {[%emt 0:01:19]} 11. Bd2 {[%emt 0:01:13]} Qc7 {[%emt 0:00:16]} 12. O-O-O {[%emt 0:00:40]} e6 {[%emt 0:00:10]} 13. Ne4 {[%emt 0:00:27]} Be7 {[%emt 0:00:46]} 14. Kb1 {[%emt 0:03:23]} O-O-O {[%emt 0:09:12]} 15. g3 {[%emt 0:02:52]} Qb6 {[%emt 0:01:36]} 16. c4 {[%emt 0:07:29]} Qa6 {[%emt 0:24:52]} 17. b3 {[%emt 0:12:47]} Ng4 {[%emt 0:13:32]} 18. Qe2 {[%emt 0:05:28]} f5 {[%emt 0:04:16]} 19. Nc3 {[%emt 0:04:59]} Rhe8 {[%emt 0:04:29]} 20. Ne5 {[%emt 0:06:44]} Ndxe5 {[%emt 0:02:23]} 21. dxe5 {[%emt 0:00:14]} Bc5 {[%emt 0:00:14]} 22. Ne4 {[%emt 0:12:51]} Qb6 {[%emt 0:12:26]} 23. Rhf1 {[%emt 0:07:54]} fxe4 {[%emt 0:18:53]} 24. Qxg4 {[%emt 0:00:12]} Rd3 {[%emt 0:01:46]} 25. Qxe4 {[%emt 0:07:57]} Rxb3+ {[%emt 0:01:10]} 26. axb3 {[%emt 0:00:10]} Qxb3+ {[%emt 0:00:03]} 27. Ka1 {[%emt 0:00:11]} Qa3+ {[%emt 0:00:04]} 28. Kb1 {[%emt 0:00:08]} Qb3+ {[%emt 0:00:03]} 29. Ka1 {[%emt 0:00:08]} Rd8 {[%emt 0:01:01]} 30. Be3 {[%emt 0:10:43]} Qa3+ {[%emt 0:00:17]} 31. Kb1 {[%emt 0:00:10]} Qb3+ {[%emt 0:00:02]} 32. Ka1 {[%emt 0:00:12]} Rxd1+ {[%emt 0:00:16]} 33. Rxd1 {[%emt 0:00:05]} Qxd1+ {[%emt 0:00:03]} 34. Kb2 {[%emt 0:00:16]} Qe2+ {[%emt 0:01:01]} 35. Kb1 {[%emt 0:00:43]} Qe1+ {[%emt 0:03:05]} 36. Kc2 {[%emt 0:01:18]} Qe2+ {[%emt 0:00:05]} 37. Kb1 {[%emt 0:00:17]} Bxe3 {[%emt 0:00:24]} 38. fxe3 {[%emt 0:00:08]} Qxh5 {[%emt 0:00:49]} 39. Qd4 {[%emt 0:01:58]} Qf5+ {[%emt 0:01:47]} 40. Kb2 {[%emt 0:00:00]} Qf2+ {[%emt 0:00:00]} 41. Kb1 {[%emt 0:03:26]} Qxg3 {[%emt 0:05:52]} 42. Qc5 {[%emt 0:02:14]} Qe1+ {[%emt 0:01:50]} 43. Kc2 {[%emt 0:00:25]} Qf2+ {[%emt 0:00:13]} 44. Kd3 {[%emt 0:01:11]} Qf1+ {[%emt 0:01:55]} 45. Kd2 {[%emt 0:00:14]} a6 {[%emt 0:01:09]} 46. Kc3 {[%emt 0:02:19]} Qf7 {[%emt 0:03:32]} 47. Qd6 {[%emt 0:01:16]} h5 {[%emt 0:01:30]} 48. c5 {[%emt 0:00:33]} h4 {[%emt 0:01:43]} 49. Qd4 {[%emt 0:00:26]} g5 {[%emt 0:01:51]} 50. Qg4 {[%emt 0:01:36]} Qf5 {[%emt 0:00:43]} 51. Qh5 Qxe5+ 52. Kb4 {[%emt 0:01:51]} Qb2+ {[%emt 0:01:02]} 53. Kc4 {[%emt 0:00:15]} Qb5+ {[%emt 0:00:21]} 54. Kd4 {[%emt 0:00:07]} Qb4+ {[%emt 0:00:03]} 55. Kd3 {[%emt 0:00:32]} Qxc5 {[%emt 0:00:11]} 0-1

[Event "European Womens-ch 2025"]
[Site "Rhodes"]
[Date "2025.04.01"]
[Round "2.5"]
[White "Schneider, Jana"]
[Black "Beydullayeva, Govhar"]
[Result "0-1"]
[Annotator "RC"]
[ECO "B90"]
[WhiteElo "2251"]
[BlackElo "2400"]
[PlyCount "84"]
[EventDate "2025.03.29"]
[EventType "swiss"]
[EventCountry "GRE"]
[SourceTitle "playchess.com"]
[Source "ChessBase"]
[SourceQuality "1"]
[TimeControl "40/5400+30:1800+30"]

1. e4 {[%emt 0:00:08]} c5 {[%emt 0:00:09]} 2. Nf3 {[%emt 0:00:11]} d6 {[%emt 0:00:06]} 3. d4 {[%emt 0:00:08]} cxd4 {[%emt 0:00:07]} 4. Nxd4 {[%emt 0:00:06]} Nf6 {[%emt 0:00:06]} 5. Nc3 {[%emt 0:00:06]} a6 {[%emt 0:00:02]} 6. Be3 {[%emt 0:00:09]} e5 {[%emt 0:00:14]} 7. Nf3 {[%emt 0:00:11]} Be7 {[%emt 0:00:36]} 8. h3 {[%emt 0:00:14]} O-O {[%emt 0:03:40]} 9. g4 {[%emt 0:00:25]} Be6 {[%emt 0:19:17]} 10. g5 {[%emt 0:00:41]} Ne8 {[%emt 0:08:13]} 11. Qd2 {[%emt 0:11:14]} Nd7 {[%emt 0:02:41]} 12. O-O-O {[%emt 0:01:51]} b5 {[%emt 0:04:07]} 13. h4 {[%emt 0:06:56]} Nc7 {[%emt 0:10:15]} 14. Bh3 {[%emt 0:10:58]} b4 {[%emt 0:07:08]} 15. Nd5 {[%emt 0:01:15]} Nxd5 {[%emt 0:00:06]} 16. exd5 {[%emt 0:00:20]} Bxh3 {[%emt 0:00:03]} 17. Rxh3 {[%emt 0:00:13]} Qa5 {[%emt 0:00:11]} 18. Kb1 {[%emt 0:02:21]} e4 {[%emt 0:07:22]} 19. Ng1 {[%emt 0:04:28]} f5 {[%emt 0:01:00]} 20. Ne2 {[%emt 0:05:06]} Rab8 {[%emt 0:07:50]} 21. Nf4 {[%emt 0:02:15]} Ne5 {[%emt 0:03:14]} 22. Bd4 {[%emt 0:05:56]} Rfc8 {[%emt 0:00:34]} 23. Qe2 {[%emt 0:13:51]} Qb5 {[%emt 0:01:57]} 24. Qxb5 {[%emt 0:05:47]} Rxb5 {[%emt 0:00:14]} 25. b3 {[%emt 0:08:20]} Bd8 {[%emt 0:04:56]} 26. c4 {[%emt 0:01:41]} bxc3 {[%emt 0:01:09]} 27. Rxc3 {[%emt 0:00:08]} Rxc3 {[%emt 0:02:17]} 28. Bxc3 {[%emt 0:00:03]} Bb6 {[%emt 0:04:00]} 29. Bd4 {[%emt 0:02:00]} Nd3 {[%emt 0:00:42]} 30. Bxb6 {[%emt 0:08:05]} Nxf4 {[%emt 0:00:28]} 31. Ba7 {[%emt 0:01:22]} Nd3 {[%emt 0:03:13]} 32. Rd2 {[%emt 0:01:43]} Rxd5 {[%emt 0:00:38]} 33. Rc2 {[%emt 0:00:16]} f4 {[%emt 0:01:48]} 34. Rc4 {[%emt 0:04:34]} e3 {[%emt 0:05:47]} 35. fxe3 {[%emt 0:00:53]} f3 {[%emt 0:00:03]} 36. Rc8+ {[%emt 0:03:48]} Kf7 {[%emt 0:00:03]} 37. Rc7+ {[%emt 0:00:19]} Ke6 {[%emt 0:02:21]} 38. e4 {[%emt 0:00:31]} Rc5 {[%emt 0:00:33]} 39. Bxc5 {[%emt 0:00:26]} dxc5 {[%emt 0:00:02]} 40. Rc8 {[%emt 0:00:00]} f2 {[%emt 0:00:00]} 41. Rf8 {[%emt 0:05:12]} Ke5 {[%emt 0:02:01]} 42. Re8+ {[%emt 0:04:49]} Kd4 {[%emt 0:00:46]} 0-1

[Event "European Womens-ch 2025"]
[Site "Rhodes"]
[Date "2025.04.01"]
[Round "2.6"]
[White "Danielian, Elina"]
[Black "Wikar, Martyna"]
[Result "1-0"]
[Annotator "RC"]
[ECO "E14"]
[WhiteElo "2398"]
[BlackElo "2239"]
[PlyCount "77"]
[EventDate "2025.03.29"]
[EventType "swiss"]
[EventCountry "GRE"]
[SourceTitle "playchess.com"]
[Source "ChessBase"]
[SourceQuality "1"]
[TimeControl "40/5400+30:1800+30"]

1. d4 {[%emt 0:00:03]} Nf6 {[%emt 0:00:18]} 2. c4 {[%emt 0:00:06]} e6 {[%emt 0:00:15]} 3. Nc3 {[%emt 0:00:06]} d5 {[%emt 0:00:27]} 4. Nf3 {[%emt 0:00:55]} a6 {[%emt 0:00:52]} 5. e3 {[%emt 0:00:24]} Nbd7 {[%emt 0:01:08]} 6. b3 {[%emt 0:01:22]} b6 {[%emt 0:01:29]} 7. Bd3 {[%emt 0:02:08]} Bb7 {[%emt 0:01:07]} 8. O-O {[%emt 0:01:26]} Bd6 {[%emt 0:01:52]} 9. Bb2 {[%emt 0:07:34]} O-O {[%emt 0:02:14]} 10. Rc1 {[%emt 0:00:04]} dxc4 {[%emt 0:13:48]} 11. bxc4 {[%emt 0:14:29]} e5 {[%emt 0:05:05]} 12. Bf5 {[%emt 0:18:20]} Re8 {[%emt 0:14:19]} 13. Bxd7 {[%emt 0:23:36]} Nxd7 {[%emt 0:10:32]} 14. d5 {[%emt 0:01:18]} Nc5 {[%emt 0:15:41]} 15. e4 {[%emt 0:00:08]} Bc8 {[%emt 0:00:21]} 16. Ne1 {[%emt 0:03:25]} Qh4 {[%emt 0:03:33]} 17. f3 {[%emt 0:03:50]} f5 {[%emt 0:03:33]} 18. Qc2 {[%emt 0:04:53]} Rf8 {[%emt 0:02:22]} 19. g3 {[%emt 0:08:24]} Qh6 {[%emt 0:05:11]} 20. Ng2 {[%emt 0:04:46]} Bd7 {[%emt 0:03:06]} 21. Rce1 {[%emt 0:00:17]} b5 {[%emt 0:06:15]} 22. Bc1 {[%emt 0:01:18]} Qh3 {[%emt 0:00:36]} 23. cxb5 {[%emt 0:01:07]} axb5 {[%emt 0:00:02]} 24. exf5 {[%emt 0:01:19]} Bxf5 {[%emt 0:00:55]} 25. Ne4 {[%emt 0:00:03]} Ra4 {[%emt 0:01:41]} 26. Ne3 {[%emt 0:01:04]} Bg6 {[%emt 0:03:54]} 27. Qe2 {[%emt 0:00:03]} Nxe4 {[%emt 0:01:44]} 28. fxe4 {[%emt 0:00:04]} Bxe4 {[%emt 0:01:09]} 29. Rxf8+ {[%emt 0:00:03]} Bxf8 {[%emt 0:00:04]} 30. Qxb5 {[%emt 0:01:54]} Rxa2 {[%emt 0:00:54]} 31. Bb2 {[%emt 0:00:04]} Qh6 {[%emt 0:00:57]} 32. d6 {[%emt 0:00:47]} Rxb2 {[%emt 0:00:34]} 33. Qxb2 {[%emt 0:00:05]} cxd6 {[%emt 0:00:19]} 34. Qb3+ {[%emt 0:00:05]} d5 {[%emt 0:00:31]} 35. Nxd5 {[%emt 0:00:42]} Bc5+ {[%emt 0:00:40]} 36. Ne3+ {[%emt 0:00:07]} Kf8 {[%emt 0:00:11]} 37. Qb8+ {[%emt 0:00:10]} Kf7 {[%emt 0:00:32]} 38. Qc7+ {[%emt 0:00:59]} Be7 {[%emt 0:00:17]} 39. Qc4+ {[%emt 0:00:52]} 1-0

[Event "European Womens-ch 2025"]
[Site "Rhodes"]
[Date "2025.04.01"]
[Round "2.8"]
[White "Urh, Zala"]
[Black "Fataliyeva, Ulviyya"]
[Result "1-0"]
[Annotator "RC"]
[ECO "E11"]
[WhiteElo "2244"]
[BlackElo "2387"]
[PlyCount "114"]
[EventDate "2025.03.29"]
[EventType "swiss"]
[EventCountry "GRE"]
[SourceTitle "playchess.com"]
[Source "ChessBase"]
[SourceQuality "1"]
[TimeControl "40/5400+30:1800+30"]

1. d4 {[%emt 0:00:02]} Nf6 {[%emt 0:02:48]} 2. c4 {[%emt 0:00:06]} e6 {[%emt 0:00:04]} 3. Nf3 {[%emt 0:00:03]} d5 {[%emt 0:00:17]} 4. g3 {[%emt 0:00:05]} Bb4+ {[%emt 0:00:08]} 5. Bd2 {[%emt 0:00:13]} Be7 {[%emt 0:00:06]} 6. Bg2 {[%emt 0:00:11]} O-O {[%emt 0:00:15]} 7. O-O {[%emt 0:00:20]} Nbd7 {[%emt 0:00:14]} 8. Qc2 {[%emt 0:01:02]} c6 {[%emt 0:00:28]} 9. b3 {[%emt 0:01:12]} Ne4 {[%emt 0:03:45]} 10. Bf4 {[%emt 0:09:55]} f5 {[%emt 0:06:04]} 11. Nc3 {[%emt 0:04:38]} Bf6 {[%emt 0:03:14]} 12. Rfd1 {[%emt 0:05:41]} g5 {[%emt 0:04:36]} 13. Be3 {[%emt 0:05:08]} Qe7 {[%emt 0:03:20]} 14. Ne1 {[%emt 0:07:26]} Qg7 {[%emt 0:07:25]} 15. f3 {[%emt 0:05:41]} Nd6 {[%emt 0:13:47]} 16. Bf2 {[%emt 0:10:02]} dxc4 {[%emt 0:02:37]} 17. bxc4 {[%emt 0:03:44]} c5 {[%emt 0:08:17]} 18. e3 {[%emt 0:02:17]} Nxc4 {[%emt 0:06:07]} 19. Nb5 {[%emt 0:10:16]} Ndb6 {[%emt 0:04:46]} 20. Bf1 {[%emt 0:03:17]} cxd4 {[%emt 0:02:44]} 21. exd4 {[%emt 0:29:41]} Na5 {[%emt 0:02:59]} 22. Qd2 {[%emt 0:00:00]} Nc6 {[%emt 0:00:40]} 23. Rab1 {[%emt 0:00:00]} Rd8 {[%emt 0:01:20]} 24. Nc2 {[%emt 0:00:00]} Nd5 {[%emt 0:04:16]} 25. Nc3 {[%emt 0:00:00]} b6 {[%emt 0:03:29]} 26. Nxd5 {[%emt 0:00:00]} exd5 {[%emt 0:00:46]} 27. Bb5 {[%emt 0:00:00]} Na5 {[%emt 0:02:18]} 28. Re1 {[%emt 0:00:00]} Nc4 {[%emt 0:09:47]} 29. Qd3 {[%emt 0:01:31]} Bd7 {[%emt 0:01:15]} 30. Bxc4 {[%emt 0:01:05]} dxc4 {[%emt 0:00:03]} 31. Qxc4+ {[%emt 0:00:01]} Qf7 {[%emt 0:02:43]} 32. Qd3 {[%emt 0:01:35]} Qxa2 {[%emt 0:00:54]} 33. Ne3 {[%emt 0:00:52]} f4 {[%emt 0:02:59]} 34. Nf5 {[%emt 0:00:41]} Qd5 {[%emt 0:01:40]} 35. Re5 {[%emt 0:00:04]} Bxf5 {[%emt 0:01:10]} 36. Rxf5 {[%emt 0:00:14]} Qd6 {[%emt 0:00:18]} 37. gxf4 {[%emt 0:00:59]} gxf4 {[%emt 0:00:28]} 38. Kh1 {[%emt 0:00:38]} Rd7 {[%emt 0:00:45]} 39. Qe4 {[%emt 0:00:41]} Rf8 {[%emt 0:00:34]} 40. Rxf4 {[%emt 0:00:00]} Re7 {[%emt 0:00:00]} 41. Rg1+ {[%emt 0:15:47]} Kh8 {[%emt 0:01:15]} 42. Rxf6 {[%emt 0:02:18]} Qxf6 {[%emt 0:01:28]} 43. Bh4 {[%emt 0:00:06]} Rxe4 {[%emt 0:01:17]} 44. Bxf6+ {[%emt 0:00:05]} Rxf6 {[%emt 0:00:04]} 45. fxe4 {[%emt 0:00:04]} Rf4 {[%emt 0:03:24]} 46. Re1 {[%emt 0:00:39]} Kg7 {[%emt 0:02:55]} 47. Kg2 {[%emt 0:02:34]} Rf7 {[%emt 0:03:43]} 48. e5 {[%emt 0:02:54]} Rc7 {[%emt 0:00:23]} 49. Kf3 {[%emt 0:02:21]} Kf7 {[%emt 0:02:49]} 50. d5 {[%emt 0:01:12]} Rc3+ {[%emt 0:00:32]} 51. Ke4 {[%emt 0:00:45]} Rh3 {[%emt 0:00:44]} 52. Rf1+ {[%emt 0:02:01]} Ke8 {[%emt 0:00:25]} 53. e6 {[%emt 0:02:00]} Rxh2 {[%emt 0:01:51]} 54. Ke5 {[%emt 0:00:28]} h5 {[%emt 0:02:15]} 55. Kd6 {[%emt 0:00:33]} Re2 {[%emt 0:00:17]} 56. Rc1 {[%emt 0:00:26]} Kf8 {[%emt 0:00:18]} 57. Rc8+ {[%emt 0:00:19]} Kg7 {[%emt 0:00:01]} 1-0

[Event "European Womens-ch 2025"]
[Site "Rhodes"]
[Date "2025.04.01"]
[Round "2.9"]
[White "Narva, Mai"]
[Black "Velikic, Adela"]
[Result "1-0"]
[Annotator "RC"]
[ECO "B12"]
[WhiteElo "2380"]
[BlackElo "2214"]
[PlyCount "73"]
[EventDate "2025.03.29"]
[EventType "swiss"]
[EventCountry "GRE"]
[SourceTitle "playchess.com"]
[Source "ChessBase"]
[SourceQuality "1"]
[TimeControl "40/5400+30:1800+30"]

1. e4 {[%emt 0:01:05]} c6 {[%emt 0:00:05]} 2. d4 {[%emt 0:00:14]} d5 {[%emt 0:00:05]} 3. e5 {[%emt 0:00:12]} c5 {[%emt 0:00:05]} 4. Nf3 {[%emt 0:00:21]} cxd4 {[%emt 0:00:07]} 5. Qxd4 {[%emt 0:00:15]} e6 {[%emt 0:01:00]} 6. Bd3 {[%emt 0:01:29]} Nc6 {[%emt 0:01:12]} 7. Qf4 {[%emt 0:00:52]} Nb4 {[%emt 0:05:10]} 8. Nc3 {[%emt 0:00:41]} Nxd3+ {[%emt 0:02:55]} 9. cxd3 {[%emt 0:00:06]} Ne7 {[%emt 0:07:36]} 10. h4 {[%emt 0:01:33]} Nc6 {[%emt 0:03:30]} 11. O-O {[%emt 0:03:55]} b6 {[%emt 0:32:28]} 12. Be3 {[%emt 0:06:41]} Qd7 {[%emt 0:04:41]} 13. a3 {[%emt 0:06:19]} Ba6 {[%emt 0:05:42]} 14. Rfd1 {[%emt 0:01:56]} Rd8 {[%emt 0:04:41]} 15. Ne2 {[%emt 0:04:05]} Ne7 {[%emt 0:04:56]} 16. Ned4 {[%emt 0:04:49]} Rc8 {[%emt 0:00:41]} 17. Ng5 {[%emt 0:10:38]} Ng6 {[%emt 0:04:03]} 18. Qg3 {[%emt 0:00:25]} Ne7 {[%emt 0:11:49]} 19. h5 {[%emt 0:04:25]} h6 {[%emt 0:03:24]} 20. Ngf3 {[%emt 0:08:51]} g5 {[%emt 0:01:37]} 21. hxg6 {[%emt 0:04:59]} Nxg6 {[%emt 0:00:05]} 22. Rd2 {[%emt 0:09:55]} Rg8 {[%emt 0:01:44]} 23. Qh3 {[%emt 0:00:45]} Bg7 {[%emt 0:02:33]} 24. Qh5 {[%emt 0:00:18]} Qe7 {[%emt 0:01:37]} 25. b4 {[%emt 0:02:09]} Rc3 {[%emt 0:00:42]} 26. b5 {[%emt 0:01:10]} Bb7 {[%emt 0:00:00]} 27. a4 {[%emt 0:01:08]} Bf8 {[%emt 0:00:56]} 28. a5 {[%emt 0:06:17]} Qc7 {[%emt 0:00:01]} 29. axb6 {[%emt 0:04:47]} axb6 {[%emt 0:00:02]} 30. Ra7 {[%emt 0:00:44]} Bc5 {[%emt 0:01:15]} 31. Nc6 {[%emt 0:04:11]} Bxe3 {[%emt 0:00:40]} 32. fxe3 {[%emt 0:00:05]} Rc1+ {[%emt 0:00:33]} 33. Kh2 {[%emt 0:00:26]} Rc5 {[%emt 0:00:31]} 34. Nfd4 {[%emt 0:01:08]} Kd7 {[%emt 0:00:32]} 35. Rda2 {[%emt 0:00:52]} Nxe5 {[%emt 0:00:29]} 36. Nxe5+ {[%emt 0:01:40]} Kc8 {[%emt 0:00:29]} 37. Ra8+ {[%emt 0:00:20]} 1-0